[Event "FIDE World Rapid-ch Open 2018"]
[White "Jobava, Baadur"]
[Black "Gabrielian, Artur"]
[Site "St. Petersburg"]
[Round "4.45"]
[Annotator "ChessBase"]
[Result "1-0"]
[Date "2018.12.26"]
[WhiteElo "2627"]
[BlackElo "2499"]
[PlyCount "83"]
[TimeControl "900+10"]

1. d4 {[%emt 0:0:0]} Nf6 {[%emt 0:0:0]} 2. c4 {[%emt 0:0:0]} c5 {[%emt 0:0:0]} 3. d5 {[%emt 0:0:0]} e6 {[%emt 0:0:0]} 4. Nc3 {[%emt 0:0:0]} exd5 {[%emt 0:0:0]} 5. cxd5 {[%emt 0:0:2]} d6 {[%emt 0:0:0]} 6. Nf3 {[%emt 0:0:0]} g6 {[%emt 0:0:0]} 7. Qa4+ {[%emt 0:0:2]} Nbd7 {[%emt 0:1:22]} 8. Bf4 {[%emt 0:0:2]} Nh5 {[%emt 0:1:20]} 9. Bg5 {[%emt 0:0:20]} Be7 {[%emt 0:0:0]} 10. Bh6 {[%emt 0:0:2]} Bf8 {[%emt 0:0:18]} 11. Bxf8 {[%emt 0:0:3]} Kxf8 {[%emt 0:0:4]} 12. e3 {[%emt 0:0:4]} Nhf6 {[%emt 0:0:9]} 13. Qf4 {[%emt 0:0:5]
} Qb6 {[%emt 0:1:2]} 14. Qh6+ {[%emt 0:0:25]} Kg8 {[%emt 0:0:0]} 15. Rb1 {[%emt 0:0:9]} Ng4 {[%emt 0:0:23]} 16. Qh4 {[%emt 0:0:2]} h5 {[%emt 0:1:29]} 17. Nd2 {[%emt 0:0:21]} Nde5 {[%emt 0:1:9]} 18. h3 {[%emt 0:2:55]
} Nh6 {[%emt 0:0:1]} 19. e4 {[%emt 0:0:6]} f5 {[%emt 0:4:9]
} 20. f4 {[%emt 0:0:35]} Nef7 {[%emt 0:0:1]} 21. Nc4 {[%emt 0:4:48]} Qc7 {[%emt 0:0:6]
} 22. e5 {[%emt 0:0:17]} dxe5 {[%emt 0:0:42]} 23. d6 {[%emt 0:0:0]} Qd7 {[%emt 0:1:24]} 24. Nxe5 {[%emt 0:0:48]} Nxe5 {[%emt 0:0:3]} 25. fxe5 {[%emt 0:0:2]} Qg7 {[%emt 0:1:31]} 26. Bc4+ {[%emt 0:0:42]} Kh7 {[%emt 0:0:1]
} 27. 0-0 {[%emt 0:0:5]} Re8 {[%emt 0:0:42]} 28. Rfe1 {[%emt 0:0:23]
} Be6 {[%emt 0:0:6]} 29. Bxe6 {[%emt 0:0:31]} Rxe6 {[%emt 0:0:0]} 30. Nd5 {[%emt 0:0:7]} Rf8 {[%emt 0:0:28]} 31. Nc7 {[%emt 0:0:32]} Qf7 {[%emt 0:2:11]} 32. Rbd1 {[%emt 0:0:30]} f4 {[%emt 0:0:9]} 33. Nxe6 {[%emt 0:0:5]
} Qxe6 {[%emt 0:0:1]} 34. Qe7+ {[%emt 0:0:7]} Qxe7 {[%emt 0:0:0]} 35. dxe7 {[%emt 0:0:3]} Re8 {[%emt 0:0:3]} 36. Rd7 {[%emt 0:0:2]} b6 {[%emt 0:0:16]} 37. Rxa7 {[%emt 0:0:4]} Nf5 {[%emt 0:0:2]} 38. Rb7 {[%emt 0:0:25]
} g5 {[%emt 0:0:4]} 39. a4 {[%emt 0:0:11]} Nd4 {[%emt 0:0:12]
} 40. Rxb6 {[%emt 0:0:10]} Rxe7 {[%emt 0:0:1]} 41. a5 {[%emt 0:0:3]} f3 {[%emt 0:1:1]
} 42. a6 {[%emt 0:0:10]} 1-0

[Event "FIDE World Rapid-ch Open 2018"]
[White "Bocharov, Ivan"]
[Black "Goganov, Aleksey"]
[Site "St. Petersburg"]
[Round "4.46"]
[Annotator "ChessBase"]
[Result "1-0"]
[Date "2018.12.26"]
[WhiteElo "2563"]
[BlackElo "2612"]
[PlyCount "55"]
[TimeControl "900+10"]

1. e4 {[%emt 0:0:0]} e6 {[%emt 0:0:0]} 2. d4 {[%emt 0:0:0]} d5 {[%emt 0:0:0]} 3. Nd2 {[%emt 0:0:0]} c5 {[%emt 0:0:0]} 4. exd5 {[%emt 0:0:0]} Qxd5 {[%emt 0:0:0]} 5. Ngf3 {[%emt 0:0:7]} cxd4 {[%emt 0:0:0]} 6. Bc4 {[%emt 0:0:2]
} Qd7 {[%emt 0:0:5]} 7. 0-0 {[%emt 0:0:19]} Nf6 {[%emt 0:0:0]} 8. Qe2 {[%emt 0:0:15]} Nc6 {[%emt 0:0:4]} 9. Rd1 {[%emt 0:0:4]} a6 {[%emt 0:0:20]
} 10. Ne4 {[%emt 0:0:49]} Be7 {[%emt 0:0:28]} 11. Bg5 {[%emt 0:0:0]} Nxe4 {[%emt 0:2:0]} 12. Qxe4 {[%emt 0:0:10]} Bxg5 {[%emt 0:0:9]} 13. Nxg5 {[%emt 0:0:16]} Qe7 {[%emt 0:0:16]} 14. Nf3 {[%emt 0:0:47]} Bd7 {[%emt 0:0:24]
} 15. Nxd4 {[%emt 0:0:12]} 0-0 {[%emt 0:0:9]} 16. Nf5 {[%emt 0:0:34]
} Qb4 {[%emt 0:2:30]} 17. Nxg7 {[%emt 0:0:56]} Kxg7 {[%emt 0:0:0]} 18. Rxd7 {[%emt 0:0:3]} Qxb2 {[%emt 0:0:6]} 19. Re1 {[%emt 0:0:46]
} Rad8 {[%emt 0:2:43]} 20. Bd3 {[%emt 0:0:44]} Rh8 {[%emt 0:0:1]} 21. Qxe6 {[%emt 0:0:46]} Rxd7 {[%emt 0:2:9]} 22. Qg4+ {[%emt 0:0:1]} Kf6 {[%emt 0:0:0]} 23. Qxd7 {[%emt 0:0:13]} h6 {[%emt 0:0:32]} 24. h4 {[%emt 0:0:50]} Qxa2 {[%emt 0:0:51]} 25. Qxb7 {[%emt 0:0:28]} Nd8 {[%emt 0:0:11]} 26. Qe7+ {[%emt 0:0:20]
} Kg7 {[%emt 0:0:4]} 27. Re3 {[%emt 0:0:8]} Qa1+ {[%emt 0:0:0]} 28. Kh2 {[%emt 0:0:5]} 1-0

[Event "FIDE World Rapid-ch Open 2018"]
[White "Najer, Evgeniy"]
[Black "Shinkevich, Vitaly"]
[Site "St. Petersburg"]
[Round "4.47"]
[Annotator "ChessBase"]
[Result "1-0"]
[Date "2018.12.26"]
[WhiteElo "2670"]
[BlackElo "2439"]
[PlyCount "57"]
[TimeControl "900+10"]

1. e4 {[%emt 0:0:0]} c5 {[%emt 0:0:6]} 2. Nf3 {[%emt 0:0:1]} d6 {[%emt 0:0:0]} 3. d4 {[%emt 0:0:2]} cxd4 {[%emt 0:0:1]} 4. Nxd4 {[%emt 0:0:0]} Nf6 {[%emt 0:0:2]} 5. Nc3 {[%emt 0:0:1]} g6 {[%emt 0:0:2]} 6. Be3 {[%emt 0:0:25]
} Bg7 {[%emt 0:0:2]} 7. f3 {[%emt 0:0:6]} 0-0 {[%emt 0:0:3]
} 8. Qd2 {[%emt 0:0:1]} Nc6 {[%emt 0:0:2]} 9. 0-0-0 {[%emt 0:0:2]} d5 {[%emt 0:0:1]
} 10. Qe1 {[%emt 0:0:2]} e6 {[%emt 0:0:18]} 11. h4 {[%emt 0:0:0]} Re8 {[%emt 0:0:4]} 12. Nb3 {[%emt 0:2:24]} h5 {[%emt 0:3:49]} 13. Kb1 {[%emt 0:0:8]} a6 {[%emt 0:0:59]} 14. g4 {[%emt 0:0:18]} hxg4 {[%emt 0:0:0]} 15. fxg4 {[%emt 0:0:3]} Nxg4 {[%emt 0:0:52]} 16. Bg5 {[%emt 0:0:3]
} f6 {[%emt 0:0:18]} 17. Bc1 {[%emt 0:0:22]} d4 {[%emt 0:0:9]} 18. Bh3 {[%emt 0:1:38]
} f5 {[%emt 0:0:21]} 19. Bxg4 {[%emt 0:0:55]} fxg4 {[%emt 0:0:0]} 20. h5 {[%emt 0:0:32]} gxh5 {[%emt 0:2:15]} 21. Rxh5 {[%emt 0:0:44]} Rf8 {[%emt 0:0:3]} 22. Bh6 {[%emt 0:1:10]} e5 {[%emt 0:1:23]} 23. Nd5 {[%emt 0:0:20]
} Bxh6 {[%emt 0:3:58]} 24. Rxh6 {[%emt 0:0:2]} Kg7 {[%emt 0:0:0]} 25. Qd2 {[%emt 0:0:37]} Rf3 {[%emt 0:0:57]} 26. Rdh1 {[%emt 0:1:23]} Rh3 {[%emt 0:0:2]} 27. R6xh3 {[%emt 0:0:4]} gxh3 {[%emt 0:0:2]} 28. Rg1+ {[%emt 0:0:1]} Kh7 {[%emt 0:0:3]} 29. Qf2 {[%emt 0:0:24]} 1-0

[Event "FIDE World Rapid-ch Open 2018"]
[White "Demchenko, Anton"]
[Black "Kryakvin, Dmitry"]
[Site "St. Petersburg"]
[Round "4.48"]
[Annotator "ChessBase"]
[Result "1/2-1/2"]
[Date "2018.12.26"]
[WhiteElo "2679"]
[BlackElo "2588"]
[PlyCount "112"]
[TimeControl "900+10"]

1. e4 {[%emt 0:0:0]} c5 {[%emt 0:0:0]} 2. Nf3 {[%emt 0:0:0]} d6 {[%emt 0:0:0]} 3. d4 {[%emt 0:0:0]} cxd4 {[%emt 0:0:0]} 4. Qxd4 {[%emt 0:0:1]} Nc6 {[%emt 0:0:1]} 5. Qe3 {[%emt 0:0:3]} Bg4 {[%emt 0:0:29]} 6. Be2 {[%emt 0:0:9]
} Nf6 {[%emt 0:0:10]} 7. 0-0 {[%emt 0:0:6]} g6 {[%emt 0:0:30]
} 8. Rd1 {[%emt 0:1:6]} Qc8 {[%emt 0:0:43]} 9. h3 {[%emt 0:3:35]} Bxf3 {[%emt 0:0:3]
} 10. Bxf3 {[%emt 0:0:11]} Bg7 {[%emt 0:0:9]} 11. c3 {[%emt 0:0:0]} 0-0 {[%emt 0:0:8]} 12. Na3 {[%emt 0:0:6]} Rd8 {[%emt 0:0:26]} 13. Bd2 {[%emt 0:0:23]} e6 {[%emt 0:0:12]} 14. Rac1 {[%emt 0:0:39]} Ne5 {[%emt 0:1:35]
} 15. Be2 {[%emt 0:0:11]} d5 {[%emt 0:0:21]} 16. exd5 {[%emt 0:0:0]} Nxd5 {[%emt 0:0:3]} 17. Qg3 {[%emt 0:0:22]} Qc5 {[%emt 0:0:37]} 18. Bg5 {[%emt 0:1:28]} Rdc8 {[%emt 0:1:20]} 19. Qh4 {[%emt 0:1:28]} Qf8 {[%emt 0:1:16]
} 20. Nc2 {[%emt 0:1:59]} h6 {[%emt 0:0:35]} 21. Bd2 {[%emt 0:0:0]} g5 {[%emt 0:0:18]} 22. Qg3 {[%emt 0:0:31]} Nc4 {[%emt 0:1:7]} 23. Bxc4 {[%emt 0:0:6]} Rxc4 {[%emt 0:0:1]} 24. Ne3 {[%emt 0:0:2]} Nf4 {[%emt 0:0:8]
} 25. Qf3 {[%emt 0:0:2]} Rc6 {[%emt 0:0:28]} 26. Ng4 {[%emt 0:0:0]} f5 {[%emt 0:0:26]} 27. Nh2 {[%emt 0:0:2]} Ng6 {[%emt 0:0:58]} 28. Qe2 {[%emt 0:0:12]} e5 {[%emt 0:0:33]} 29. Qb5 {[%emt 0:0:26]} Qf7 {[%emt 0:0:0]} 30. Qb3 {[%emt 0:0:56]} Qxb3 {[%emt 0:1:6]} 31. axb3 {[%emt 0:0:1]
} e4 {[%emt 0:0:26]} 32. f3 {[%emt 0:0:14]} Re8 {[%emt 0:0:45]} 33. fxe4 {[%emt 0:0:7]
} Rxe4 {[%emt 0:0:1]} 34. Re1 {[%emt 0:0:28]} Rce6 {[%emt 0:0:0]} 35. Rxe4 {[%emt 0:0:24]} Rxe4 {[%emt 0:0:3]} 36. Nf3 {[%emt 0:0:14]
} g4 {[%emt 0:1:3]} 37. hxg4 {[%emt 0:0:12]} fxg4 {[%emt 0:0:1]} 38. Re1 {[%emt 0:0:1]
} Rxe1+ {[%emt 0:1:1]} 39. Nxe1 {[%emt 0:0:1]} Ne5 {[%emt 0:0:0]} 40. Be3 {[%emt 0:0:4]} a6 {[%emt 0:0:8]} 41. Kf2 {[%emt 0:0:16]} Kf7 {[%emt 0:0:19]} 42. Ke2 {[%emt 0:0:56]} Ke6 {[%emt 0:0:19]} 43. Nc2 {[%emt 0:0:22]
} Nc6 {[%emt 0:0:16]} 44. Bb6 {[%emt 0:0:24]} h5 {[%emt 0:0:0]} 45. Ne3 {[%emt 0:0:16]} Bh6 {[%emt 0:0:11]} 46. Kd3 {[%emt 0:0:7]} Bxe3 {[%emt 0:0:14]} 47. Bxe3 {[%emt 0:0:31]} Kf5 {[%emt 0:0:1]} 48. g3 {[%emt 0:0:31]
} Ne7 {[%emt 0:2:38]} 49. Kd4 {[%emt 0:0:10]} Ke6 {[%emt 0:0:0]} 50. Bf2 {[%emt 0:0:3]} Nc6+ {[%emt 0:0:34]} 51. Kd3 {[%emt 0:0:15]} Kd5 {[%emt 0:0:10]} 52. c4+ {[%emt 0:0:6]} Ke5 {[%emt 0:0:3]} 53. Bb6 {[%emt 0:0:5]
} Kf5 {[%emt 0:0:8]} 54. Ke3 {[%emt 0:0:17]} Ke5 {[%emt 0:0:0]} 55. Kd3 {[%emt 0:0:1]} Kf5 {[%emt 0:0:22]} 56. Ke3 {[%emt 0:0:1]} Ke5 1/2-1/2

[Event "FIDE World Rapid-ch Open 2018"]
[White "Ponkratov, Pavel"]
[Black "Ghaem Maghami, Ehsan"]
[Site "St. Petersburg"]
[Round "4.49"]
[Annotator "ChessBase"]
[Result "1-0"]
[Date "2018.12.26"]
[WhiteElo "2630"]
[BlackElo "2537"]
[PlyCount "99"]
[TimeControl "900+10"]

1. g3 {[%emt 0:0:0]} c5 {[%emt 0:0:0]} 2. Bg2 {[%emt 0:0:0]} Nc6 {[%emt 0:0:0]
} 3. Nf3 {[%emt 0:0:0]} g6 {[%emt 0:0:0]} 4. 0-0 {[%emt 0:0:0]} Bg7 {[%emt 0:0:0]} 5. e3 {[%emt 0:0:17]} Nf6 {[%emt 0:2:18]} 6. d4 {[%emt 0:0:16]
} cxd4 {[%emt 0:0:15]} 7. exd4 {[%emt 0:0:23]} d5 {[%emt 0:0:0]} 8. Ne5 {[%emt 0:0:16]} 0-0 {[%emt 0:0:21]} 9. h3 {[%emt 0:0:36]} Bf5 {[%emt 0:1:16]
} 10. g4 {[%emt 0:0:37]} Bd7 {[%emt 0:0:59]} 11. c3 {[%emt 0:0:0]} e6 {[%emt 0:0:27]} 12. Be3 {[%emt 0:0:29]} Ne4 {[%emt 0:0:13]} 13. Nd3 {[%emt 0:0:9]} Na5 {[%emt 0:0:26]} 14. Nd2 {[%emt 0:0:4]} Nxd2 {[%emt 0:0:15]
} 15. Bxd2 {[%emt 0:0:3]} Bb5 {[%emt 0:0:11]} 16. Bf4 {[%emt 0:0:4]
} a6 {[%emt 0:1:50]} 17. Re1 {[%emt 0:0:9]} Rc8 {[%emt 0:0:0]} 18. Rc1 {[%emt 0:1:17]} Re8 {[%emt 0:1:2]} 19. Bg3 {[%emt 0:0:21]} Bf8 {[%emt 0:1:27]} 20. h4 {[%emt 0:0:30]} Bd6 {[%emt 0:0:29]} 21. g5 {[%emt 0:0:0]} Bxd3 {[%emt 0:0:19]} 22. Qxd3 {[%emt 0:0:2]} Nc4 {[%emt 0:0:20]} 23. b3 {[%emt 0:0:21]} Bxg3 {[%emt 0:0:12]} 24. fxg3 {[%emt 0:1:18]} Nd6 {[%emt 0:0:4]
} 25. c4 {[%emt 0:0:1]} dxc4 {[%emt 0:1:6]} 26. bxc4 {[%emt 0:0:1]
} Qc7 {[%emt 0:0:2]} 27. d5 {[%emt 0:1:52]} Qc5+ {[%emt 0:0:0]} 28. Kh2 {[%emt 0:0:5]} e5 {[%emt 0:3:13]} 29. h5 {[%emt 0:0:51]} e4 {[%emt 0:1:31]
} 30. Qf1 {[%emt 0:0:9]} Qd4 {[%emt 0:0:34]} 31. Qf4 {[%emt 0:0:0]} Nxc4 {[%emt 0:0:6]} 32. Rcd1 {[%emt 0:2:51]} Qe5 {[%emt 0:0:11]} 33. d6 {[%emt 0:0:14]} Qxf4 {[%emt 0:0:14]} 34. gxf4 {[%emt 0:0:2]} Rcd8 {[%emt 0:0:2]
} 35. d7 {[%emt 0:0:6]} Re7 {[%emt 0:0:21]} 36. Rxe4 {[%emt 0:0:0]} Rxe4 {[%emt 0:0:1]} 37. Bxe4 {[%emt 0:0:1]} b5 {[%emt 0:0:19]} 38. Bb7 {[%emt 0:0:22]} a5 {[%emt 0:0:10]} 39. Ba6 {[%emt 0:0:4]} Ne3 {[%emt 0:0:0]} 40. Rd3 {[%emt 0:0:9]} Ng4+ {[%emt 0:0:9]} 41. Kg3 {[%emt 0:0:2]} gxh5 {[%emt 0:0:2]} 42. Bxb5 {[%emt 0:0:2]} h6 {[%emt 0:0:5]} 43. Kh4 {[%emt 0:0:39]
} hxg5+ {[%emt 0:0:3]} 44. fxg5 {[%emt 0:0:14]} Kg7 {[%emt 0:0:0]} 45. Rc3 {[%emt 0:0:13]} Kf8 {[%emt 0:0:16]} 46. Ra3 {[%emt 0:0:17]} Ne5 {[%emt 0:0:8]} 47. Rxa5 {[%emt 0:1:25]} Nxd7 {[%emt 0:0:3]} 48. Ba4 {[%emt 0:0:9]
} Ke7 {[%emt 0:0:26]} 49. Ra7 {[%emt 0:0:7]} Kd6 {[%emt 0:0:0]} 50. Rxd7+ {[%emt 0:0:3] Kd5} 1-0

[Event "FIDE World Rapid-ch Open 2018"]
[White "Popov, Ivan"]
[Black "Esipenko, Andrey"]
[Site "St. Petersburg"]
[Round "4.50"]
[Annotator "ChessBase"]
[Result "1/2-1/2"]
[Date "2018.12.26"]
[WhiteElo "2592"]
[BlackElo "2593"]
[PlyCount "29"]
[TimeControl "900+10"]

1. e4 {[%emt 0:0:0]} c6 {[%emt 0:0:3]} 2. Nc3 {[%emt 0:0:27]} d5 {[%emt 0:0:0]} 3. Nf3 {[%emt 0:0:1]} Bg4 {[%emt 0:0:3]} 4. h3 {[%emt 0:0:1]} Bxf3 {[%emt 0:0:3]} 5. Qxf3 {[%emt 0:0:1]} e6 {[%emt 0:0:2]} 6. Be2 {[%emt 0:0:2]
} Nd7 {[%emt 0:0:2]} 7. d4 {[%emt 0:0:3]} g6 {[%emt 0:0:5]} 8. 0-0 {[%emt 0:0:9]} Bg7 {[%emt 0:0:3]} 9. Rd1 {[%emt 0:0:25]} Ne7 {[%emt 0:0:6]
} 10. Bg5 {[%emt 0:0:32]} 0-0 {[%emt 0:0:9]} 11. Qe3 {[%emt 0:0:0]} Re8 {[%emt 0:0:10]} 12. Bf3 {[%emt 0:1:27]} Qa5 {[%emt 0:3:35]} 13. Bxe7 {[%emt 0:0:39]} dxe4 {[%emt 0:0:3]} 14. Nxe4 {[%emt 0:1:46]} Rxe7 {[%emt 0:0:5]
} 15. Qg5 {[%emt 0:0:18]} 1/2-1/2

[Event "FIDE World Rapid-ch Open 2018"]
[White "Geller, Jakov"]
[Black "Potkin, Vladimir"]
[Site "St. Petersburg"]
[Round "4.51"]
[Annotator "ChessBase"]
[Result "1/2-1/2"]
[Date "2018.12.26"]
[WhiteElo "2518"]
[BlackElo "2597"]
[PlyCount "207"]
[TimeControl "900+10"]

1. e4 {[%emt 0:0:0]} c5 {[%emt 0:0:0]} 2. Nf3 {[%emt 0:0:0]} d6 {[%emt 0:0:0]} 3. d4 {[%emt 0:0:0]} cxd4 {[%emt 0:0:0]} 4. Nxd4 {[%emt 0:0:2]} Nf6 {[%emt 0:0:0]} 5. Nc3 {[%emt 0:0:3]} a6 {[%emt 0:0:0]} 6. Be3 {[%emt 0:0:52]
} e5 {[%emt 0:0:3]} 7. Nf3 {[%emt 0:0:32]} Qc7 {[%emt 0:0:26]
} 8. Be2 {[%emt 0:0:35]} Be7 {[%emt 0:0:4]} 9. 0-0 {[%emt 0:0:11]} 0-0 {[%emt 0:0:3]
} 10. a4 {[%emt 0:0:15]} Be6 {[%emt 0:0:3]} 11. a5 {[%emt 0:0:0]} Nbd7 {[%emt 0:0:9]} 12. Nd2 {[%emt 0:0:38]} d5 {[%emt 0:0:19]} 13. exd5 {[%emt 0:0:24]} Nxd5 {[%emt 0:0:2]} 14. Nxd5 {[%emt 0:0:3]} Bxd5 {[%emt 0:0:1]
} 15. Bf3 {[%emt 0:0:26]} Be6 {[%emt 0:1:30]} 16. Ne4 {[%emt 0:0:0]} f5 {[%emt 0:1:28]} 17. Ng5 {[%emt 0:0:25]} Bxg5 {[%emt 0:0:7]} 18. Bd5 {[%emt 0:1:23]} Qd6 {[%emt 0:4:1]} 19. Bb3 {[%emt 0:2:29]} Qc6 {[%emt 0:0:2]
} 20. Ba4 {[%emt 0:0:36]} Qc7 {[%emt 0:0:39]} 21. Bxd7 {[%emt 0:0:9]
} Bxd7 {[%emt 0:0:34]} 22. Qd5+ {[%emt 0:0:3]} Rf7 {[%emt 0:0:0]} 23. Bxg5 {[%emt 0:0:13]} Bc6 {[%emt 0:0:13]} 24. Qc5 {[%emt 0:0:19]} h6 {[%emt 0:0:23]} 25. Bd2 {[%emt 0:0:19]} Rd8 {[%emt 0:0:23]} 26. Bc3 {[%emt 0:0:33]
} Rd5 {[%emt 0:0:2]} 27. Qc4 {[%emt 0:0:44]} Qd6 {[%emt 0:0:0]} 28. Rfe1 {[%emt 0:0:25]} e4 {[%emt 0:0:27]} 29. Re3 {[%emt 0:1:38]} f4 {[%emt 0:0:47]} 30. Rxe4 {[%emt 0:0:24]} Rg5 {[%emt 0:0:21]} 31. Rae1 {[%emt 0:1:29]
} Qg6 {[%emt 0:1:2]} 32. g3 {[%emt 0:1:16]} fxg3 {[%emt 0:0:0]} 33. hxg3 {[%emt 0:0:20]} Rxg3+ {[%emt 0:1:39]} 34. fxg3 {[%emt 0:0:2]} Qxg3+ {[%emt 0:0:1]} 35. Kh1 {[%emt 0:0:1]} Qf3+ {[%emt 0:0:32]} 36. Kh2 {[%emt 0:0:35]
} Qf2+ {[%emt 0:0:25]} 37. Kh1 {[%emt 0:0:5]} Kh7 {[%emt 0:0:0]} 38. Qd4 {[%emt 0:0:47]} Qxd4 {[%emt 0:2:31]} 39. Bxd4 {[%emt 0:0:2]} Rf4 {[%emt 0:0:2]} 40. Kg1 {[%emt 0:0:42]} Bxe4 {[%emt 0:0:5]} 41. Rf1 {[%emt 0:0:6]
} Rg4+ {[%emt 0:1:41]} 42. Kf2 {[%emt 0:0:1]} Bxc2 {[%emt 0:0:0]} 43. Bc3 {[%emt 0:0:11]} Rf4+ {[%emt 0:0:24]} 44. Ke1 {[%emt 0:0:7]} Rxf1+ {[%emt 0:0:3]} 45. Kxf1 {[%emt 0:0:2]} g5 {[%emt 0:0:1]} 46. Kf2 {[%emt 0:0:11]
} Kg6 {[%emt 0:0:2]} 47. Ke3 {[%emt 0:0:23]} h5 {[%emt 0:0:0]} 48. Bb4 {[%emt 0:0:5]} Kf6 {[%emt 0:0:21]} 49. Bd6 {[%emt 0:0:5]} h4 {[%emt 0:0:11]} 50. Bc7 {[%emt 0:0:4]} Kf5 {[%emt 0:0:35]} 51. Bd8 {[%emt 0:0:3]
} Be4 {[%emt 0:0:4]} 52. b4 {[%emt 0:0:18]} Bc6 {[%emt 0:0:0]} 53. Be7 {[%emt 0:0:15]} Kg4 {[%emt 0:0:18]} 54. Kf2 {[%emt 0:0:12]} Kf4 {[%emt 0:0:23]} 55. Bd8 {[%emt 0:0:3]} Kf5 {[%emt 0:0:17]} 56. Be7 {[%emt 0:0:3]
} Kg6 {[%emt 0:0:4]} 57. Bd8 {[%emt 0:0:2]} Kh5 {[%emt 0:0:0]} 58. Be7 {[%emt 0:0:24]} g4 {[%emt 0:0:4]} 59. Ke3 {[%emt 0:0:1]} g3 {[%emt 0:0:6]
} 60. Kf4 {[%emt 0:0:2]} Bd7 {[%emt 0:0:36]} 61. Bd8 {[%emt 0:0:0]} Be6 {[%emt 0:0:4]} 62. Be7 {[%emt 0:0:3]} Bd7 {[%emt 0:0:2]} 63. Bd8 {[%emt 0:0:2]} Bc8 {[%emt 0:0:6]} 64. Be7 {[%emt 0:0:3]} Bh3 {[%emt 0:0:13]
} 65. Bd8 {[%emt 0:0:3]} Bf1 {[%emt 0:0:2]} 66. Be7 {[%emt 0:0:0]} Bb5 {[%emt 0:0:7]} 67. Bd8 {[%emt 0:0:6]} Be2 {[%emt 0:0:13]} 68. Be7 {[%emt 0:0:3]} g2 {[%emt 0:0:5]} 69. Bc5 {[%emt 0:0:2]} Kg6 {[%emt 0:0:0]} 70. Bg1 {[%emt 0:0:18]} Kf6 {[%emt 0:0:2]} 71. Ke3 {[%emt 0:0:1]} Bf1 {[%emt 0:0:38]} 72. Kf2 {[%emt 0:0:3]} Ke6 {[%emt 0:0:8]} 73. Bh2 {[%emt 0:0:3]
} Kd5 {[%emt 0:0:4]} 74. Kg1 {[%emt 0:0:3]} h3 {[%emt 0:0:0]} 75. Bc7 {[%emt 0:0:12]} Bd3 {[%emt 0:0:2]} 76. Bf4 {[%emt 0:0:6]} Be4 {[%emt 0:0:3]} 77. Be3 {[%emt 0:0:22]} Kc4 {[%emt 0:0:16]} 78. Bc5 {[%emt 0:0:22]
} Kd5 {[%emt 0:0:38]} 79. Kh2 {[%emt 0:0:4]} Bf5 {[%emt 0:0:0]} 80. Bf8 {[%emt 0:0:7]} Kd4 {[%emt 0:0:13]} 81. Be7 {[%emt 0:0:5]} Ke3 {[%emt 0:0:4]} 82. Bc5+ {[%emt 0:0:5]} Ke2 {[%emt 0:0:2]} 83. Bg1 {[%emt 0:0:3]
} Kf1 {[%emt 0:0:3]} 84. Bc5 {[%emt 0:0:3]} Be4 {[%emt 0:0:0]} 85. Bb6 {[%emt 0:0:3]} Bc6 {[%emt 0:0:8]} 86. Bc5 {[%emt 0:0:2]} Bd7 {[%emt 0:0:17]} 87. Bb6 {[%emt 0:0:2]} Ke2 {[%emt 0:0:6]} 88. Bc5 {[%emt 0:0:2]
} Kd3 {[%emt 0:0:1]} 89. Bd6 {[%emt 0:0:2]} Kc4 {[%emt 0:0:0]} 90. Be7 {[%emt 0:0:2]} Kb5 {[%emt 0:0:10]} 91. Bd6 {[%emt 0:0:3]} Kc4 {[%emt 0:0:21]} 92. Be7 {[%emt 0:0:2]} Kb5 {[%emt 0:0:7]} 93. Bd6 {[%emt 0:0:2]
} b6 {[%emt 0:0:1]} 94. axb6 {[%emt 0:0:3]} Kxb6 {[%emt 0:0:0]} 95. Be7 {[%emt 0:0:3]} Kb5 {[%emt 0:0:1]} 96. Bd6 {[%emt 0:0:1]} Kc4 {[%emt 0:0:1]} 97. Be7 {[%emt 0:0:2]} Kd3 {[%emt 0:0:2]} 98. Bc5 {[%emt 0:0:4]
} Ke2 {[%emt 0:0:2]} 99. Bb6 {[%emt 0:0:3]} Kf1 {[%emt 0:0:0]} 100. Bc5 {[%emt 0:0:1]} Bc6 {[%emt 0:0:2]} 101. Bb6 {[%emt 0:0:1]} a5 {[%emt 0:0:26]} 102. bxa5 {[%emt 0:0:5]} Bb7 {[%emt 0:0:2]} 103. a6 {[%emt 0:0:5]
} Bxa6 {[%emt 0:0:1]} 104. Bg1 1/2-1/2

[Event "FIDE World Rapid-ch Open 2018"]
[White "Gutenev, Alexander"]
[Black "Khismatullin, Denis"]
[Site "St. Petersburg"]
[Round "4.52"]
[Annotator "ChessBase"]
[Result "0-1"]
[Date "2018.12.26"]
[WhiteElo "2456"]
[BlackElo "2621"]
[PlyCount "82"]
[TimeControl "900+10"]

1. e4 {[%emt 0:0:0]} c5 {[%emt 0:0:0]} 2. Nf3 {[%emt 0:0:0]} d6 {[%emt 0:0:0]} 3. d4 {[%emt 0:0:0]} cxd4 {[%emt 0:0:0]} 4. Nxd4 {[%emt 0:0:0]} Nf6 {[%emt 0:0:0]} 5. Nc3 {[%emt 0:0:0]} a6 {[%emt 0:0:0]} 6. Be3 {[%emt 0:0:19]
} e5 {[%emt 0:0:10]} 7. Nf3 {[%emt 0:0:9]} Be7 {[%emt 0:0:17]
} 8. Bc4 {[%emt 0:0:2]} 0-0 {[%emt 0:0:2]} 9. 0-0 {[%emt 0:0:2]} Qc7 {[%emt 0:0:15]
} 10. Bb3 {[%emt 0:0:12]} Be6 {[%emt 0:0:6]} 11. Bg5 {[%emt 0:0:0]} Nbd7 {[%emt 0:0:6]} 12. Rc1 {[%emt 0:0:45]} b5 {[%emt 0:1:10]} 13. Bxf6 {[%emt 0:0:10]} Nxf6 {[%emt 0:0:3]} 14. Nd5 {[%emt 0:0:9]} Bxd5 {[%emt 0:4:44]
} 15. Bxd5 {[%emt 0:0:2]} Rac8 {[%emt 0:0:0]} 16. Qd3 {[%emt 0:2:11]
} Nxd5 {[%emt 0:0:2]} 17. Qxd5 {[%emt 0:0:1]} Qc4 {[%emt 0:0:0]} 18. Rfd1 {[%emt 0:3:8]} g6 {[%emt 0:0:56]} 19. c3 {[%emt 0:0:37]} Qxd5 {[%emt 0:0:46]} 20. Rxd5 {[%emt 0:0:3]} f5 {[%emt 0:0:3]} 21. exf5 {[%emt 0:3:29]
} gxf5 {[%emt 0:0:4]} 22. a4 {[%emt 0:0:59]} bxa4 {[%emt 0:0:0]} 23. Ra1 {[%emt 0:0:14]} Rb8 {[%emt 0:1:17]} 24. Rd2 {[%emt 0:0:2]} Rb3 {[%emt 0:0:38]} 25. Rxa4 {[%emt 0:0:3]} Rfb8 {[%emt 0:0:1]} 26. Rxa6 {[%emt 0:1:10]
} Rxb2 {[%emt 0:2:6]} 27. Rxb2 {[%emt 0:1:10]} Rxb2 {[%emt 0:0:0]} 28. h4 {[%emt 0:0:38]} Rb1+ {[%emt 0:2:52]} 29. Kh2 {[%emt 0:0:2]} h6 {[%emt 0:0:34]} 30. h5 {[%emt 0:0:24]} Kf7 {[%emt 0:0:4]} 31. Ra8 {[%emt 0:1:11]
} Bf6 {[%emt 0:0:9]} 32. Ra7+ {[%emt 0:0:8]} Ke6 {[%emt 0:0:0]} 33. Rh7 {[%emt 0:0:3]} f4 {[%emt 0:0:14]} 34. g4 {[%emt 0:1:8]} e4 {[%emt 0:0:10]
} 35. Rxh6 {[%emt 0:0:21]} Kf7 {[%emt 0:0:9]} 36. Nd2 {[%emt 0:0:30]
} e3 {[%emt 0:0:14]} 37. fxe3 {[%emt 0:0:23]} fxe3 {[%emt 0:0:0]} 38. Nf3 {[%emt 0:0:10]} e2 {[%emt 0:0:3]} 39. g5 {[%emt 0:0:8]} Be5+ {[%emt 0:0:13]} 40. Kg2 {[%emt 0:0:2]} Rf1 {[%emt 0:0:4]} 41. g6+ {[%emt 0:0:17]
} Kg8 {[%emt 0:0:5]} 0-1